bitfinex/quotes_BTCUSD_20251120
["timestamp","ask_amount","ask_price","bid_price","bid_amount"]
[1763667950540,0.11476708,86741.0,86719.0,0.01247]
[1763667951848,0.11476708,86741.0,86719.0,0.03656]
[1763667952009,0.11476708,86741.0,86720.0,0.02409]
[1763667952211,0.78238842,86760.0,86721.0,0.01383747]
[1763667952212,0.323,86750.0,86721.0,0.01383747]
[1763667952435,0.323,86750.0,86720.0,0.02409]
[1763667952436,0.11476708,86767.0,86730.0,0.78238842]
[1763667952637,0.11476708,86749.0,86723.0,0.323]
[1763667952836,0.11476708,86749.0,86723.0,0.02409]
[1763667953447,0.11476708,86749.0,86724.0,0.013837]
[1763667953691,0.11476708,86749.0,86725.0,0.08327854]
[1763667953866,0.11476708,86749.0,86726.0,0.01383668]
[1763667954252,0.03095069,86788.0,86762.0,0.02442]
[1763667954452,0.0239,86804.0,86779.0,0.323]
[1763667954639,0.01808617,86782.0,86781.0,0.323]
[1763667954800,0.01808617,86782.0,86781.0,0.34655]
[1763667955002,0.01022,86806.0,86781.0,0.37064]
[1763667955184,0.01022,86806.0,86781.0,0.34655]
[1763667955384,0.11476708,86805.0,86782.0,0.03888983]
[1763667955807,0.0239,86804.0,86782.0,0.03888983]
[1763667956013,0.01808292,86800.0,86782.0,0.03888983]
[1763667956419,0.01808292,86800.0,86790.0,0.78238842]
[1763667958129,0.01808108,86798.0,86788.0,0.08524183]
[1763667958331,0.01808108,86798.0,86789.0,0.01482217]
[1763667959425,0.01808108,86798.0,86793.0,0.11476708]
[1763667959768,0.01808108,86798.0,86797.0,0.01524]
[1763667960235,0.01808108,86798.0,86797.0,0.03933]
[1763667961081,0.0239,86855.0,86800.0,0.05210249]
[1763667961281,0.0239,86855.0,86813.0,0.46131708]
[1763667961531,0.0239,86855.0,86813.0,0.63240126]
[1763667961737,0.0002,86860.0,86813.0,0.63240126]
[1763667961738,0.0125,86856.0,86814.0,0.37510249]
[1763667961897,0.0125,86856.0,86816.0,0.37510249]
[1763667962099,0.0125,86856.0,86840.0,0.78238842]
[1763667962288,0.11476708,86852.0,86830.0,0.78238842]
[1763667962485,0.11518167,86852.0,86817.0,0.02409]
[1763667962686,0.00053707,86831.0,86813.0,0.12307708]
[1763667962890,0.01196,86818.0,86805.0,0.00806]
[1763667963123,0.34654,86837.0,86808.0,0.78238842]
[1763667963320,0.11476708,86824.0,86796.0,0.00806]
[1763667963527,0.02354,86836.0,86800.0,0.78238842]
[1763667963528,0.11476708,86823.0,86800.0,0.78238842]
[1763667963770,0.11476708,86823.0,86799.0,0.0317531]
[1763667963771,0.02354,86835.0,86799.0,0.0317531]
[1763667963946,0.11476708,86823.0,86796.0,0.00806]
[1763667964153,0.02354,86836.0,86799.0,5.52e-05]
[1763667964377,0.02354,86836.0,86800.0,0.78238842]
[1763667964779,0.11476708,86823.0,86800.0,0.78238842]
[1763667964980,0.11476708,86823.0,86799.0,5.52e-05]
[1763667965243,0.02851,86800.0,86799.0,5.52e-05]
[1763667968295,0.01196,86812.0,86799.0,5.52e-05]
[1763667968522,0.01196,86820.0,86800.0,0.8971555]
[1763667968697,0.00025276,86822.0,86801.0,0.08972107]
[1763667969464,0.01807866,86817.0,86801.0,0.08972107]
[1763667970336,0.01807866,86817.0,86799.0,5.52e-05]
[1763667970899,0.01807866,86817.0,86800.0,0.11476708]
[1763667971099,0.01807866,86817.0,86816.0,0.02322]
[1763667971529,0.11476708,86847.0,86817.0,0.13773708]
[1763667971855,0.01061289,86856.0,86830.0,0.46704628]
[1763667972174,0.01061289,86856.0,86840.0,0.46704628]
[1763667972290,0.00028432,86831.0,86825.0,0.08597452]
[1763667972494,0.01061289,86856.0,86826.0,0.02297]
[1763667972735,0.01061289,86856.0,86830.0,0.01516]
[1763667972935,0.11476708,86851.0,86820.0,0.46704628]
[1763667973135,0.01061289,86856.0,86821.0,0.13790394]
[1763667973136,0.323,86850.0,86821.0,0.13790394]
[1763667973314,0.01102748,86856.0,86840.0,0.46704628]
[1763667973535,0.01807235,86844.0,86840.0,0.46704628]
[1763667973735,0.00041459,86856.0,86840.0,0.04670463]
[1763667973894,0.00041459,86856.0,86836.0,0.01133]
[1763667974109,0.01807171,86844.0,86836.0,0.01133]
[1763667974523,0.01807171,86844.0,86831.0,0.11476708]
[1763667974882,0.01807171,86844.0,86800.0,0.11476708]
[1763667974883,0.01807171,86844.0,86804.0,0.01133]
[1763667974884,0.02084,86832.0,86804.0,0.01133]
[1763667975118,0.02084,86832.0,86805.0,0.07401375]
[1763667975119,0.11476708,86829.0,86805.0,0.07401375]
[1763667975327,0.11361745,86829.0,86804.0,0.01133]
[1763667975519,0.11361745,86829.0,86800.0,0.58181336]
[1763667975520,0.02354,86828.0,86800.0,0.58181336]
[1763667975683,0.01807734,86823.0,86810.0,0.46704628]
[1763667976000,0.323,86842.0,86810.0,0.46704628]
[1763667976001,0.323,86842.0,86811.0,0.01382313]
[1763667976002,0.00429,86833.0,86811.0,0.01382313]
[1763667976201,0.00429,86833.0,86812.0,0.04808694]
[1763667976698,0.00429,86833.0,86813.0,0.01133]
[1763667977117,0.00429,86833.0,86811.0,5.52e-05]
[1763667977118,0.11476708,86829.0,86811.0,5.52e-05]
[1763667977885,0.13830708,86828.0,86811.0,5.52e-05]
[1763667978822,0.11476708,86825.0,86811.0,5.52e-05]
[1763667979218,0.01655,86812.0,86811.0,5.52e-05]
[1763667979427,0.03739598,86824.0,86811.0,5.52e-05]
[1763667979629,0.01655,86812.0,86811.0,5.52e-05]
[1763667979870,0.323,86824.0,86811.0,5.52e-05]
[1763667980047,0.02354,86823.0,86811.0,5.52e-05]
[1763667980249,0.01655,86812.0,86811.0,5.52e-05]
[1763667980671,0.323,86820.0,86811.0,5.52e-05]
[1763667981067,0.00025273,86830.0,86811.0,5.52e-05]
[1763667981365,0.11476708,86827.0,86811.0,5.52e-05]
[1763667981884,0.02354,86826.0,86811.0,5.52e-05]
[1763667982812,0.01655,86812.0,86811.0,5.52e-05]
[1763667983111,0.04009,86812.0,86811.0,5.52e-05]
[1763667983319,0.11476708,86827.0,86811.0,5.52e-05]
[1763667983558,0.01655,86812.0,86811.0,5.52e-05]
[1763667983891,0.04009,86812.0,86811.0,5.52e-05]
[1763667984086,0.05205,86812.0,86811.0,5.52e-05]
[1763667985639,0.01196,86812.0,86811.0,5.52e-05]
[1763667985925,0.05205,86812.0,86811.0,5.52e-05]
[1763667986137,0.42715249,86812.0,86811.0,5.52e-05]
[1763667986255,0.42715249,86812.0,86775.0,0.00197049]
[1763667986256,0.05210249,86811.0,86775.0,0.00197049]
[1763667986458,0.11476708,86796.0,86776.0,0.04803468]
[1763667986653,0.11476708,86796.0,86775.0,0.0022434]
[1763667986853,0.02354,86795.0,86775.0,0.0022434]
[1763667987100,0.00624,86776.0,86775.0,0.0022434]
[1763667988106,0.02354,86788.0,86775.0,0.0022434]
[1763667988313,0.00624,86782.0,86775.0,0.0022434]
[1763667989176,0.01655,86776.0,86775.0,0.0022434]
[1763667989488,0.00624,86782.0,86775.0,0.0022434]
[1763667989714,0.11476708,86781.0,86775.0,0.0022434]
[1763667990532,0.01557,86776.0,86775.0,0.0022434]
[1763667990893,0.04002,86776.0,86775.0,0.0022434]
[1763667993440,0.41512249,86776.0,86775.0,0.0022434]
[1763667995018,0.41512249,86776.0,86720.0,0.46704628]
[1763667995019,0.37510249,86775.0,86720.0,0.46704628]
[1763667995225,0.37510249,86775.0,86727.0,0.01174393]
[1763667995226,0.11476708,86749.0,86727.0,0.01174393]
[1763667995419,0.00812,86728.0,86727.0,0.00041393]
[1763667995795,0.00812,86742.0,86727.0,0.00041393]
[1763667996002,0.00812,86742.0,86730.0,0.46704628]
[1763667996312,0.00812,86742.0,86727.0,0.00041393]
[1763667996314,0.03244,86742.0,86727.0,0.00041393]
[1763667997942,0.03244,86742.0,86727.0,0.04830595]
[1763667998173,0.02432,86741.0,86727.0,0.00041393]
[1763667998461,0.01555,86728.0,86727.0,0.00041393]
[1763667998608,0.03987,86728.0,86727.0,0.00041393]
[1763667998950,0.11476708,86732.0,86727.0,0.00041393]
[1763667999124,0.00812,86742.0,86727.0,0.00041393]
[1763667999125,0.01555,86728.0,86727.0,0.00041393]
[1763667999520,0.03987,86728.0,86727.0,0.00041393]
[1763668000087,0.323,86739.0,86727.0,0.00041393]
[1763668000088,0.02432,86738.0,86727.0,0.00041393]
[1763668000215,0.03364662,86728.0,86727.0,0.00041393]
[1763668000615,0.4463069,86728.0,86727.0,0.00041393]
[1763668001025,0.4463069,86728.0,86727.0,0.00193263]
[1763668001237,0.4463069,86728.0,86710.0,0.0004]
[1763668001238,0.37510249,86727.0,86710.0,0.0004]
[1763668001435,0.14085708,86711.0,86710.0,0.00052677]
[1763668001859,0.16517708,86711.0,86710.0,0.00052677]
[1763668005792,0.48817708,86711.0,86710.0,0.00052677]
[1763668007181,0.48817708,86711.0,86710.0,0.00106491]
[1763668007998,0.54027957,86711.0,86710.0,0.00106491]
[1763668009018,0.48817708,86711.0,86710.0,0.00106491]
[1763668009414,0.54027957,86711.0,86710.0,0.00106491]
[1763668010525,0.55838164,86711.0,86710.0,0.00106491]
[1763668010864,0.54027957,86711.0,86710.0,0.00106491]
[1763668012238,0.48817708,86711.0,86710.0,0.00106491]
[1763668013453,0.18327891,86711.0,86710.0,0.00106491]
[1763668014069,0.04419183,86711.0,86710.0,0.00106491]
[1763668014585,0.06851183,86711.0,86710.0,0.00106491]
[1763668015089,0.46704628,86720.0,86710.0,0.00106491]
[1763668015300,0.05210249,86719.0,86710.0,0.00052677]
[1763668016128,0.05210249,86717.0,86710.0,0.00052677]
[1763668016323,0.05210249,86715.0,86710.0,0.00052677]
[1763668016528,0.05210249,86713.0,86710.0,0.00052677]
[1763668016751,0.05210249,86719.0,86710.0,0.00052677]
[1763668016948,0.37510249,86717.0,86710.0,0.00052677]
[1763668017187,0.46704628,86720.0,86710.0,0.00052677]
[1763668017188,0.05210249,86715.0,86710.0,0.00052677]
[1763668017397,0.34448278,86716.0,86710.0,0.00052677]
[1763668017398,0.05210249,86713.0,86710.0,0.00052677]
[1763668017605,0.05210249,86711.0,86710.0,0.00052677]
[1763668017784,0.07360834,86711.0,86710.0,0.00052677]
[1763668020211,0.09173291,86711.0,86710.0,0.00052677]
[1763668020585,0.08437208,86711.0,86690.0,0.0004]
[1763668020796,0.08437208,86711.0,86690.0,0.00052668]
[1763668020797,0.11476708,86691.0,86690.0,0.00052668]
[1763668021205,0.11476708,86691.0,86690.0,0.00169819]
[1763668021608,0.43776708,86691.0,86690.0,0.00169819]
[1763668021812,0.48986957,86691.0,86690.0,0.00169819]
[1763668022070,0.56038554,86691.0,86690.0,0.00169819]
[1763668022546,0.51139858,86691.0,86690.0,0.00169819]
[1763668022724,0.51139858,86691.0,86680.0,0.0004]
[1763668022726,0.84214877,86690.0,86680.0,0.0004]
[1763668022891,0.84214877,86690.0,86680.0,0.00050484]
[1763668022892,0.05210249,86688.0,86680.0,0.00050484]
[1763668023161,0.05210249,86686.0,86680.0,0.00050484]
[1763668023451,0.05210249,86684.0,86680.0,0.00050484]
[1763668023652,0.05210249,86682.0,86680.0,0.00050484]
[1763668023807,0.39661864,86681.0,86680.0,0.00050484]
[1763668024008,0.39661864,86681.0,86670.0,0.0004]
[1763668024010,0.37510249,86680.0,86670.0,0.0004]
[1763668024210,0.37510249,86680.0,86660.0,0.0004]
[1763668024212,0.05210249,86669.0,86660.0,0.0004]
[1763668024409,0.05210249,86667.0,86660.0,0.0004]
[1763668024619,0.03227835,86668.0,86660.0,0.0004]
[1763668024620,0.05210249,86665.0,86660.0,0.0004]
[1763668024905,0.05210249,86663.0,86660.0,0.0004]
[1763668025121,0.05210249,86661.0,86660.0,0.0004]
[1763668025348,0.07361864,86661.0,86660.0,0.0004]
[1763668025928,0.08640948,86661.0,86660.0,0.0004]
[1763668026333,0.05210249,86669.0,86660.0,0.0004]
[1763668026532,0.05210249,86667.0,86660.0,0.0004]
[1763668026731,0.05210249,86665.0,86660.0,0.0004]
[1763668026936,0.05210249,86669.0,86660.0,0.0004]
[1763668027148,0.79004628,86670.0,86660.0,0.0004]
[1763668027149,0.05210249,86667.0,86660.0,0.0004]
[1763668027322,0.05210249,86665.0,86660.0,0.0004]
[1763668028091,0.37510249,86666.0,86660.0,0.0004]
[1763668028276,0.02150831,86665.0,86660.0,0.0004]
[1763668028473,0.02150831,86664.0,86660.0,0.0004]
[1763668028616,0.06444068,86667.0,86660.0,0.0004]
[1763668028617,0.07361155,86663.0,86660.0,0.0004]
[1763668028830,0.37510249,86661.0,86660.0,0.0004]
[1763668029051,0.39661155,86661.0,86660.0,0.0004]
[1763668029274,0.39661155,86661.0,86660.0,0.0013504]
[1763668029928,0.07361155,86661.0,86660.0,0.0013504]
[1763668031274,0.07361155,86661.0,86640.0,0.0004]
[1763668031506,0.07361155,86661.0,86640.0,0.00082098]
[1763668031507,0.43776708,86641.0,86640.0,0.00082098]
[1763668033017,0.323,86641.0,86640.0,0.00082098]
[1763668033233,0.00999999,86670.0,86640.0,0.00082098]
[1763668033234,0.11476708,86658.0,86640.0,0.01735098]
[1763668033852,0.323,86657.0,86640.0,0.01735098]
[1763668034273,0.11476708,86645.0,86640.0,0.00082098]
[1763668034706,0.323,86657.0,86640.0,0.00082098]
[1763668034914,0.11476708,86658.0,86640.0,0.02434098]
[1763668035110,0.04898696,86686.0,86640.0,0.81056389]
[1763668035334,0.11476708,86657.0,86640.0,0.02434098]
[1763668035526,0.11476708,86657.0,86641.0,0.02352]
[1763668036154,0.11476708,86657.0,86640.0,0.00082098]
[1763668037303,0.11476708,86657.0,86640.0,0.00145484]
[1763668037475,0.11476708,86657.0,86640.0,0.00082098]
[1763668037675,0.11476708,86657.0,86652.0,0.00025351]
[1763668038567,0.01811396,86656.0,86653.0,0.02352]
[1763668039017,0.01811396,86656.0,86655.0,0.01653]
[1763668039675,0.01811396,86656.0,86655.0,0.04005]
[1763668040282,0.01811396,86656.0,86655.0,0.01653]
[1763668040546,0.01811396,86656.0,86655.0,0.04005]
[1763668040908,0.01254878,86682.0,86655.0,0.04005]
[1763668041130,0.11476708,86672.0,86655.0,0.04005]
[1763668041712,1.10922291,86690.0,86655.0,0.04005]
[1763668041713,0.11476708,86671.0,86655.0,0.01653]
[1763668041927,0.03082598,86704.0,86660.0,0.78622291]
[1763668041928,0.323,86688.0,86660.0,0.78622291]
[1763668042141,0.02151587,86687.0,86670.0,0.01653]
[1763668042355,0.11476708,86689.0,86670.0,0.01653]
[1763668042553,0.04112206,86716.0,86670.0,0.01653]
[1763668042554,0.81704889,86720.0,86686.0,0.01133]
[1763668042808,0.03319029,86704.0,86686.0,0.01133]
[1763668043008,0.0215194,86703.0,86686.0,0.01133]
[1763668043197,0.323,86704.0,86686.0,0.01133]
[1763668043421,0.02152153,86703.0,86686.0,0.01175098]
[1763668043549,0.78622291,86720.0,86686.0,0.01175098]
[1763668043752,0.323,86704.0,86686.0,0.01175098]
[1763668043951,0.04397089,86703.0,86686.0,0.01175098]
[1763668044157,0.01810567,86700.0,86686.0,0.01175098]
[1763668045320,0.01810567,86700.0,86699.0,0.01653]
[1763668045732,0.01810567,86700.0,86699.0,0.04005]
[1763668046069,0.01810567,86700.0,86686.0,0.00042098]
[1763668046469,0.01810567,86700.0,86687.0,0.02352]
[1763668046672,0.01810567,86700.0,86699.0,0.02786]
[1763668047052,0.01810567,86700.0,86699.0,0.01133]
[1763668047278,0.01810567,86700.0,86686.0,0.00042098]
[1763668048493,0.01810567,86700.0,86699.0,0.01133]
[1763668049037,0.01810567,86700.0,86699.0,0.05138]
[1763668051567,0.00194186,86706.0,86699.0,0.05138]
[1763668051767,0.03466374,86766.0,86706.0,0.323]
[1763668051968,0.03298682,86751.0,86720.0,0.78622291]
[1763668052190,0.03298682,86751.0,86707.0,0.04774071]
[1763668052191,0.11476708,86738.0,86707.0,0.08303071]
[1763668052397,0.323,86737.0,86708.0,0.02465]
[1763668053182,0.323,86737.0,86708.0,0.02507098]
[1763668053565,0.323,86734.0,86710.0,0.78622291]
[1763668053764,0.11476708,86735.0,86710.0,0.78622291]
[1763668053962,0.11476708,86735.0,86708.0,0.00042098]
[1763668054175,0.323,86734.0,86709.0,0.02465]
[1763668054830,0.11476708,86721.0,86708.0,0.00042098]
[1763668055006,0.32103217,86734.0,86708.0,0.00042098]
[1763668055212,0.32103217,86734.0,86708.0,0.02507098]
[1763668055374,0.11476708,86721.0,86708.0,0.02507098]
[1763668056899,0.32103217,86734.0,86708.0,0.02507098]
[1763668057313,0.32103217,86734.0,86710.0,0.78622291]
[1763668057521,0.32103217,86734.0,86708.0,0.02507098]
[1763668057719,0.00025324,86714.0,86708.0,0.02507098]
[1763668058272,0.00025324,86714.0,86713.0,0.0155]
[1763668059625,0.00025324,86714.0,86708.0,0.00042098]
[1763668059838,0.43776708,86709.0,86708.0,0.00042098]
[1763668060053,0.00025324,86714.0,86708.0,0.00042098]
[1763668060254,0.00025324,86714.0,86713.0,0.0155]
[1763668060622,0.00025324,86714.0,86708.0,0.00042098]
[1763668060851,0.05210249,86744.0,86713.0,0.0155]
[1763668061140,0.11476708,86720.0,86713.0,0.0155]
[1763668061606,0.12624379,86735.0,86713.0,0.0155]
[1763668061759,0.11476708,86735.0,86713.0,0.0155]
[1763668062334,0.11476708,86735.0,86713.0,0.04015]
[1763668062536,0.11476708,86721.0,86713.0,0.0155]
[1763668062755,0.11476708,86721.0,86708.0,0.00042098]
[1763668063646,0.11476708,86735.0,86709.0,0.02465]
[1763668063647,0.323,86734.0,86709.0,0.02465]
[1763668063875,0.323,86734.0,86710.0,0.78622291]
[1763668064074,0.323,86734.0,86709.0,0.02465]
[1763668064425,0.11476708,86735.0,86709.0,0.02465]
[1763668064801,0.17961448,86752.0,86734.0,0.01162]
[1763668064802,0.323,86749.0,86734.0,0.01162]
[1763668065154,0.11476708,86738.0,86734.0,0.01162]
[1763668065778,0.11476708,86738.0,86727.0,0.01162]
[1763668065955,0.01147671,86737.0,86711.0,0.02465]
[1763668067180,0.11476708,86738.0,86712.0,0.01316287]
[1763668067388,0.11476708,86738.0,86711.0,0.02465]
[1763668067588,0.11476708,86724.0,86711.0,0.02465]
[1763668067786,0.11476708,86724.0,86708.0,0.00042098]
[1763668068977,0.11476708,86738.0,86709.0,0.02465]
[1763668068978,0.323,86737.0,86709.0,0.02465]
[1763668069096,0.11476708,86724.0,86709.0,0.02465]
[1763668069677,0.33447671,86737.0,86709.0,0.02465]
[1763668070088,0.11476708,86736.0,86709.0,0.02465]
[1763668070314,0.11476708,86736.0,86708.0,0.00042098]
[1763668070316,0.323,86735.0,86708.0,0.00042098]
[1763668070451,0.323,86719.0,86708.0,0.00042098]
[1763668071025,0.02156128,86718.0,86708.0,0.00042098]
[1763668071141,0.05210249,86715.0,86708.0,0.00042098]
[1763668071344,0.14727679,86717.0,86708.0,0.00042098]
[1763668071345,0.37510249,86713.0,86708.0,0.00042098]
[1763668071593,0.37510249,86711.0,86708.0,0.00042098]
[1763668071740,0.05210249,86709.0,86708.0,0.00042098]
[1763668071943,0.43230174,86709.0,86708.0,0.00042098]
[1763668072652,0.35534285,86709.0,86708.0,0.00042098]
[1763668072894,0.03235313,86709.0,86708.0,0.00042098]
[1763668073271,0.02156128,86709.0,86708.0,0.00042098]
[1763668073704,0.02156128,86713.0,86708.0,0.00042098]
[1763668073922,0.02156128,86712.0,86708.0,0.00042098]
[1763668074124,0.02156128,86711.0,86708.0,0.00042098]
[1763668074279,0.323,86717.0,86708.0,0.00042098]
[1763668074280,0.02156128,86710.0,86708.0,0.00042098]
[1763668074487,0.11476708,86722.0,86708.0,0.00042098]
[1763668074846,0.34458236,86721.0,86708.0,0.00042098]
[1763668075044,0.80780527,86720.0,86708.0,0.00042098]
[1763668075203,0.02158236,86719.0,86708.0,0.00042098]
[1763668075529,0.36893494,86721.0,86708.0,0.00042098]
[1763668075530,0.323,86721.0,86708.0,0.00042098]
[1763668076316,0.02158855,86720.0,86708.0,0.00042098]
[1763668076515,0.323,86721.0,86708.0,0.00042098]
[1763668076720,0.02158852,86720.0,86708.0,0.00042098]
[1763668076969,0.323,86721.0,86708.0,0.00042098]
[1763668077199,0.323,86719.0,86708.0,0.00042098]
[1763668079343,0.0002532,86722.0,86709.0,0.02465]
[1763668079541,0.11476708,86721.0,86709.0,0.02465]
[1763668080297,0.78622291,86720.0,86708.0,0.00042098]
[1763668080509,0.0002532,86722.0,86708.0,0.02507098]
[1763668080687,0.0002532,86722.0,86708.0,0.00042098]
[1763668080688,0.323,86717.0,86708.0,0.00042098]
[1763668080894,0.02159812,86716.0,86708.0,0.00042098]
[1763668081095,0.02159812,86715.0,86708.0,0.00042098]
[1763668081352,0.0002532,86722.0,86708.0,0.00042098]
[1763668081353,0.0002532,86722.0,86716.0,0.0155]
[1763668081566,0.0002532,86722.0,86721.0,0.01162]
[1763668081735,0.0002532,86722.0,86721.0,0.02712]
[1763668081882,0.0002532,86722.0,86721.0,0.05177]
[1763668082504,0.11476708,86752.0,86721.0,0.05177]
[1763668082720,0.11476708,86752.0,86722.0,0.13936708]
[1763668083124,0.11476708,86752.0,86723.0,0.0246]
[1763668083362,0.11476708,86752.0,86723.0,0.3476]
[1763668083551,0.11476708,86752.0,86724.0,0.0246]
[1763668083754,0.12754332,86752.0,86725.0,0.02645151]
[1763668083978,0.12754332,86752.0,86724.0,0.0246]
[1763668083979,0.78459951,86750.0,86724.0,0.0246]
[1763668084384,0.11476708,86752.0,86724.0,0.0246]
[1763668084772,0.78459951,86750.0,86724.0,0.0246]
[1763668085121,0.11476708,86752.0,86724.0,0.0246]
[1763668085324,0.01809521,86761.0,86725.0,0.11476708]
[1763668085528,0.11476708,86753.0,86726.0,0.01626071]
[1763668085843,0.01809521,86761.0,86726.0,0.36386071]
[1763668086057,0.11476708,86760.0,86752.0,0.01606]
[1763668086258,0.11476708,86760.0,86727.0,0.0246]
[1763668087133,0.11476708,86760.0,86729.0,0.11476708]
[1763668087346,0.11476708,86760.0,86730.0,0.01556278]
[1763668087539,0.11476708,86760.0,86730.0,0.04016278]
[1763668087949,0.11476708,86760.0,86731.0,0.0246]
[1763668088310,0.89936659,86760.0,86731.0,0.0246]
[1763668088709,0.00031645,86732.0,86731.0,0.0246]
[1763668089214,0.00031645,86732.0,86731.0,0.04066]
[1763668089834,0.00031645,86732.0,86727.0,0.00042098]
[1763668090036,0.01809457,86733.0,86731.0,0.01606]
[1763668090263,0.01809457,86733.0,86732.0,0.01606]
[1763668090841,0.01809457,86733.0,86732.0,0.04066]
[1763668091381,0.01809457,86733.0,86732.0,0.01606]
[1763668091650,0.01809457,86733.0,86727.0,0.00042098]
[1763668091980,0.01809457,86733.0,86732.0,0.01606]
[1763668092186,0.01809457,86733.0,86727.0,0.00042098]
[1763668092627,0.01909457,86733.0,86727.0,0.00042098]
[1763668092888,0.11476708,86732.0,86727.0,0.00042098]
[1763668093053,0.33638617,86731.0,86727.0,0.00042098]
[1763668093433,0.05210249,86730.0,86727.0,0.00042098]
[1763668093821,0.05210249,86730.0,86681.0,0.0850095]
[1763668093822,0.05210249,86730.0,86682.0,0.01158]
[1763668093823,0.05210249,86728.0,86682.0,0.01158]
[1763668094025,0.46798484,86700.0,86683.0,0.0246]
[1763668095084,0.11476708,86707.0,86683.0,0.0246]
[1763668095085,0.11476708,86707.0,86684.0,0.01384338]
[1763668095086,0.323,86706.0,86684.0,0.01384338]
[1763668095326,0.11476708,86707.0,86684.0,0.01384338]
[1763668095495,0.001,86700.0,86685.0,0.0246]
[1763668095673,0.001,86700.0,86686.0,0.01384306]
[1763668095872,0.001,86700.0,86685.0,0.0246]
[1763668096087,0.46998484,86700.0,86685.0,0.0246]
[1763668096612,0.001,86700.0,86685.0,0.0246]
[1763668096849,0.001,86700.0,86682.0,0.01195339]
[1763668096850,0.46898484,86700.0,86682.0,0.01195339]
[1763668097446,0.11476708,86709.0,86682.0,0.01195339]
[1763668097447,0.323,86708.0,86699.0,0.01606]
[1763668097781,0.11476708,86709.0,86699.0,0.01606]
[1763668097782,0.001,86700.0,86699.0,0.01606]
[1763668098005,0.001,86700.0,86691.0,0.0246]
[1763668098168,0.11476708,86709.0,86691.0,0.0246]
[1763668098372,0.001,86700.0,86691.0,0.0246]
[1763668098780,0.001,86700.0,86699.0,0.01606]
[1763668099174,0.001,86700.0,86691.0,0.0246]
[1763668099388,0.11576708,86709.0,86699.0,0.01606]
[1763668099985,0.001,86709.0,86708.0,0.01158]
[1763668100159,0.001,86709.0,86700.0,0.01158]
[1763668100365,0.11476708,86708.0,86700.0,0.01158]
[1763668100814,0.38127519,86707.0,86682.0,0.01195339]
[1763668100964,0.46798484,86692.0,86682.0,0.01195339]
[1763668101311,0.46798484,86692.0,86682.0,0.00037339]
[1763668101795,0.11476708,86694.0,86682.0,0.00037339]
[1763668102412,0.46798484,86692.0,86682.0,0.00037339]
[1763668102588,0.48609048,86692.0,86682.0,0.00037339]
[1763668102801,0.01810564,86692.0,86691.0,0.02764]
[1763668103024,0.01810564,86692.0,86691.0,0.05224]
[1763668103351,0.05844528,86727.0,86691.0,0.05224]
[1763668103352,0.001,86694.0,86691.0,0.05224]
[1763668103537,0.05844528,86727.0,86693.0,0.01606]
[1763668103758,0.00025317,86730.0,86726.0,0.01606]
[1763668104372,0.00025317,86730.0,86719.0,0.01158]
[1763668104949,0.00025317,86730.0,86719.0,0.01195339]
[1763668105150,0.00025317,86730.0,86719.0,0.00037339]
[1763668105151,0.11476708,86729.0,86719.0,0.00037339]
[1763668105383,0.05210249,86728.0,86719.0,0.00037339]
[1763668105559,0.323,86728.0,86719.0,0.00037339]
[1763668105755,0.11476708,86729.0,86719.0,0.00037339]
[1763668105756,0.323,86726.0,86719.0,0.00037339]
[1763668105960,0.11476708,86729.0,86719.0,0.00037339]
[1763668106574,0.01809834,86727.0,86719.0,0.00037339]
[1763668107588,0.01809834,86727.0,86726.0,0.01606]
[1763668108799,0.323,86725.0,86719.0,0.00037339]
[1763668109249,0.11476708,86724.0,86719.0,0.00037339]
[1763668111081,0.11576708,86724.0,86719.0,0.00037339]
[1763668111288,0.05210249,86722.0,86719.0,0.00037339]
[1763668111498,0.323,86721.0,86719.0,0.00037339]
[1763668112576,0.11576708,86724.0,86719.0,0.00037339]
[1763668112778,0.323,86723.0,86719.0,0.00037339]
[1763668112978,0.001,86722.0,86719.0,0.00037339]
[1763668113219,0.323,86723.0,86719.0,0.00037339]
[1763668113426,0.11476708,86724.0,86719.0,0.00037339]
[1763668113640,0.001,86721.0,86719.0,0.00037339]
[1763668114098,0.001,86721.0,86720.0,0.04087]
[1763668114770,0.001,86724.0,86720.0,0.04087]
[1763668115004,0.001,86722.0,86721.0,0.02468]
[1763668115209,0.001,86722.0,86720.0,0.01619]
[1763668115447,0.46798484,86730.0,86719.0,0.00037339]
[1763668115651,0.11476708,86725.0,86719.0,0.00037339]
[1763668115860,0.17304227,86725.0,86719.0,0.00037339]
[1763668116288,0.11476708,86725.0,86719.0,0.00037339]
[1763668118597,0.323,86724.0,86719.0,0.00037339]
[1763668119891,0.324,86724.0,86719.0,0.00037339]
[1763668120101,0.325,86724.0,86719.0,0.00037339]
[1763668120981,0.002,86724.0,86719.0,0.00037339]
[1763668121227,0.06050923,86724.0,86719.0,0.00037339]
[1763668121463,0.325,86724.0,86719.0,0.00037339]
[1763668122709,0.05210249,86723.0,86719.0,0.00037339]
[1763668123126,0.38030145,86722.0,86719.0,0.00037339]
[1763668123318,0.43240407,86721.0,86671.0,0.02468]
[1763668123521,0.46832525,86700.0,86676.0,0.02693976]
[1763668123647,0.11476708,86692.0,86676.0,0.02693976]
[1763668124876,0.46832525,86700.0,86691.0,0.01151]
[1763668125073,0.11476708,86706.0,86691.0,0.01151]
[1763668125271,0.46832525,86701.0,86691.0,0.01151]
[1763668125622,0.46832525,86701.0,86686.0,0.01151]
[1763668125808,0.11476708,86706.0,86676.0,0.00225976]
[1763668125809,0.11476708,86692.0,86676.0,0.00225976]
[1763668125985,0.46832525,86690.0,86676.0,0.00225976]
[1763668126509,0.11476708,86678.0,86676.0,0.00225976]
[1763668127930,0.11476708,86692.0,86677.0,0.04087]
[1763668127931,0.46832525,86690.0,86677.0,0.04087]
[1763668128367,0.46832525,86690.0,86677.0,0.01619]
[1763668128580,0.05491711,86720.0,86689.0,0.0277]
[1763668128785,0.11476708,86725.0,86691.0,0.01619]
[1763668128786,0.11476708,86705.0,86691.0,0.01619]
[1763668128981,0.323,86704.0,86691.0,0.01619]
[1763668129263,0.11476708,86705.0,86692.0,0.02468]
[1763668130039,0.11476708,86709.0,86692.0,0.02468]
[1763668130856,0.11476708,86709.0,86689.0,0.01151]
[1763668130857,0.46832525,86702.0,86689.0,0.01151]
[1763668131325,0.11476708,86709.0,86690.0,0.02468]
[1763668131443,0.46832525,86700.0,86689.0,0.01151]
[1763668131850,0.11476708,86709.0,86689.0,0.01151]
[1763668132266,0.11476708,86709.0,86689.0,0.03619]
[1763668132460,0.11476708,86708.0,86689.0,0.03619]
[1763668132687,0.11476708,86708.0,86689.0,0.01151]